[Event "RUS-ch Blitz Women 2018"]
[Site "Sochi"]
[Date "2018.10.07"]
[Round "11"]
[White "Tomilova, Elena"]
[Black "Maltsevskaya, Aleksandra"]
[Result "0-1"]
[ECO "A49"]
[WhiteElo "2328"]
[BlackElo "2290"]
[Annotator "NA"]
[PlyCount "86"]
[EventDate "2018.10.07"]
[EventType "swiss"]
[EventCountry "RUS"]
[SourceTitle "playchess.com"]
[Source "ChessBase"]
[SourceQuality "1"]
[TimeControl "180+2"]

1. d4 {[%emt 0:00:00]} Nf6 {[%emt 0:00:00]} 2. Nf3 {[%emt 0:00:01]} g6 {[%emt 0:00:00]} 3. g3 {[%emt 0:00:02]} Bg7 {[%emt 0:00:01]} 4. Bg2 {[%emt 0:00:01]} O-O {[%emt 0:00:01]} 5. O-O {[%emt 0:00:01]} d6 {[%emt 0:00:01]} 6. a4 {[%emt 0:00:01]} a5 {[%emt 0:00:08]} 7. Nc3 {[%emt 0:00:02]} Na6 {[%emt 0:00:01]} 8. e4 {[%emt 0:00:04]} c5 {[%emt 0:00:04]} 9. d5 {[%emt 0:00:10]} Rb8 {[%emt 0:00:17]} 10. Re1 {[%emt 0:00:06]} Nd7 {[%emt 0:00:18]} 11. Bf4 $14 {[%emt 0:00:21]} Nc7 {[%emt 0:00:04]} 12. Qd2 {[%emt 0:00:20]} Re8 {[%emt 0:00:10]} 13. Bh6 {[%emt 0:00:09]} Bh8 {[%emt 0:00:02]} 14. Bf1 {[%emt 0:00:10]} Nf6 {[%emt 0:00:07]} 15. h3 {[%emt 0:00:08]} Bd7 {[%emt 0:00:25]} 16. Ra2 {[%emt 0:00:20]} b5 {[%emt 0:00:02]} 17. axb5 {[%emt 0:00:05]} Nxb5 {[%emt 0:00:01]} 18. Nxb5 {[%emt 0:00:04]} Bxb5 {[%emt 0:00:01]} 19. c4 {[%emt 0:00:03]} Bd7 {[%emt 0:00:19]} 20. e5 {[%emt 0:00:12]} dxe5 {[%emt 0:00:11]} 21. Nxe5 {[%emt 0:00:02]} Rb4 {[%emt 0:00:01]} 22. Re3 {[%emt 0:00:13]} Qc7 {[%emt 0:00:21]} 23. g4 {[%emt 0:00:08]} Ne4 {[%emt 0:00:15]} 24. Rxe4 {[%emt 0:00:10]} Bxe5 {[%emt 0:00:02]} 25. f4 {[%emt 0:00:11]} Bh8 {[%emt 0:00:04]} 26. Qe2 {[%emt 0:00:14]} Qd6 {[%emt 0:00:40]} 27. Bg5 {[%emt 0:00:07]} f6 {[%emt 0:00:03]} 28. Bh4 {[%emt 0:00:04]} Bg7 {[%emt 0:00:06]} 29. Bg3 {[%emt 0:00:11]} f5 {[%emt 0:00:00]} 30. Re5 {[%emt 0:00:03]} Reb8 {[%emt 0:00:05]} 31. gxf5 {[%emt 0:00:03]} Bxf5 {[%emt 0:00:01]} 32. Rxe7 {[%emt 0:00:03]} Rxb2 {[%emt 0:00:04]} 33. Rxg7+ {[%emt 0:00:04]} Kxg7 {[%emt 0:00:06]} 34. Rxb2 {[%emt 0:00:01]} Rb4 {[%emt 0:00:02]} 35. Rxb4 {[%emt 0:00:04]} axb4 {[%emt 0:00:01]} 36. h4 {[%emt 0:00:03]} h5 {[%emt 0:00:02]} 37. Kh2 {[%emt 0:00:04]} b3 {[%emt 0:00:02]} 38. Bh3 {[%emt 0:00:02]} Qf6 {[%emt 0:00:03]} 39. Bxf5 {[%emt 0:00:03]} gxf5 {[%emt 0:00:03]} 40. Qd2 {[%emt 0:00:03]} b2 {[%emt 0:00:03]} 41. Qc2 {[%emt 0:00:02]} Qd4 {[%emt 0:00:01]} 42. Kg2 {[%emt 0:00:03]} Qe4+ {[%emt 0:00:01]} 43. Qxe4 {[%emt 0:00:04]} fxe4 {[%emt 0:00:01]} 0-1

[Event "RUS-ch Blitz Women 2018"]
[Site "Sochi"]
[Date "2018.10.07"]
[Round "11"]
[White "Guseva, Marina"]
[Black "Vasilevich, Tatjana"]
[Result "1-0"]
[ECO "D35"]
[WhiteElo "2292"]
[BlackElo "2360"]
[Annotator "NA"]
[PlyCount "137"]
[EventDate "2018.10.07"]
[EventType "swiss"]
[EventCountry "RUS"]
[SourceTitle "playchess.com"]
[Source "ChessBase"]
[SourceQuality "1"]
[TimeControl "180+2"]

1. d4 {[%emt 0:00:00]} Nf6 {[%emt 0:00:00]} 2. c4 {[%emt 0:00:00]} e6 {[%emt 0:00:00]} 3. Nc3 {[%emt 0:00:01]} d5 {[%emt 0:00:03]} 4. cxd5 {[%emt 0:00:02]} exd5 {[%emt 0:00:01]} 5. Bg5 {[%emt 0:00:02]} Be7 {[%emt 0:00:02]} 6. e3 {[%emt 0:00:01]} O-O {[%emt 0:00:10]} 7. Bd3 {[%emt 0:00:01]} Nbd7 {[%emt 0:00:01]} 8. Qc2 {[%emt 0:00:03]} c6 {[%emt 0:00:05]} 9. Nf3 {[%emt 0:00:03]} Re8 {[%emt 0:00:01]} 10. h3 {[%emt 0:00:05]} Nf8 {[%emt 0:00:02]} 11. Bf4 {[%emt 0:00:01]} Be6 {[%emt 0:00:25]} 12. O-O {[%emt 0:00:37]} Bd6 {[%emt 0:00:11]} 13. Ne5 {[%emt 0:00:05]} Qe7 {[%emt 0:00:09]} 14. Bg5 {[%emt 0:00:06]} h6 {[%emt 0:00:39]} 15. Bh4 {[%emt 0:00:11]} g5 {[%emt 0:00:08]} 16. Bg3 {[%emt 0:00:03]} Nh5 {[%emt 0:00:02]} 17. Bh2 {[%emt 0:00:06]} f6 {[%emt 0:00:25]} 18. Ng6 {[%emt 0:00:17]} Bxh2+ {[%emt 0:00:02]} 19. Kxh2 {[%emt 0:00:01]} Qd6+ {[%emt 0:00:16]} 20. Kg1 {[%emt 0:00:03]} Bf7 {[%emt 0:00:05]} 21. Nxf8 {[%emt 0:00:09]} Kxf8 {[%emt 0:00:07]} 22. Rad1 {[%emt 0:00:12]} Kg8 {[%emt 0:00:07]} 23. Ne2 {[%emt 0:00:04]} Re7 {[%emt 0:00:07]} 24. Bg6 {[%emt 0:00:07]} Ng7 {[%emt 0:00:05]} 25. Bxf7+ {[%emt 0:00:02]} Rxf7 {[%emt 0:00:05]} 26. Qg6 {[%emt 0:00:03]} h5 {[%emt 0:00:05]} 27. Ng3 {[%emt 0:00:03]} Kf8 {[%emt 0:00:16]} 28. Nxh5 {[%emt 0:00:04]} Nxh5 {[%emt 0:00:07]} 29. Qxh5 {[%emt 0:00:01]} Ke7 {[%emt 0:00:01]} 30. Qg6 {[%emt 0:00:07]} Rh8 {[%emt 0:00:03]} 31. e4 {[%emt 0:00:05]} dxe4 {[%emt 0:00:03]} 32. Qxe4+ {[%emt 0:00:01]} Kf8 {[%emt 0:00:01]} 33. d5 {[%emt 0:00:07]} c5 {[%emt 0:00:01]} 34. Rfe1 {[%emt 0:00:05]} Kg7 {[%emt 0:00:00]} 35. Qf5 {[%emt 0:00:03]} Re7 {[%emt 0:00:05]} 36. Rxe7+ Qxe7 37. d6 {[%emt 0:00:19]} Qe5 {[%emt 0:00:04]} 38. Qxe5 fxe5 39. Rd5 {[%emt 0:00:13]} Rd8 {[%emt 0:00:03]} 40. Rxe5 {[%emt 0:00:03]} Kf6 {[%emt 0:00:03]} 41. Rxc5 {[%emt 0:00:02]} Rxd6 {[%emt 0:00:00]} 42. Rc2 {[%emt 0:00:05]} b5 {[%emt 0:00:06]} 43. g3 {[%emt 0:00:02]} a6 {[%emt 0:00:04]} 44. Kg2 {[%emt 0:00:01]} Kf5 {[%emt 0:00:02]} 45. Kf3 {[%emt 0:00:08]} Rd3+ {[%emt 0:00:00]} 46. Ke2 {[%emt 0:00:01]} Rd6 {[%emt 0:00:01]} 47. Rc5+ {[%emt 0:00:03]} Kf6 {[%emt 0:00:01]} 48. b3 {[%emt 0:00:05]} Kg6 {[%emt 0:00:01]} 49. a4 {[%emt 0:00:01]} bxa4 {[%emt 0:00:02]} 50. bxa4 {[%emt 0:00:01]} Kf6 {[%emt 0:00:03]} 51. Ra5 {[%emt 0:00:01]} Kg6 {[%emt 0:00:03]} 52. Kf3 {[%emt 0:00:02]} Rf6+ {[%emt 0:00:04]} 53. Kg4 {[%emt 0:00:02]} Rxf2 {[%emt 0:00:04]} 54. Rxa6+ {[%emt 0:00:02]} Kg7 {[%emt 0:00:01]} 55. Kxg5 {[%emt 0:00:02]} Rf3 {[%emt 0:00:00]} 56. Kg4 {[%emt 0:00:02]} Ra3 {[%emt 0:00:02]} 57. h4 {[%emt 0:00:01]} Rb3 {[%emt 0:00:02]} 58. Kf4 {[%emt 0:00:08]} Rb4+ {[%emt 0:00:02]} 59. Kg5 {[%emt 0:00:02]} Rb3 {[%emt 0:00:01]} 60. Ra7+ {[%emt 0:00:03]} Kf8 {[%emt 0:00:01]} 61. g4 {[%emt 0:00:01]} Kg8 {[%emt 0:00:02]} 62. h5 {[%emt 0:00:01]} Rb6 {[%emt 0:00:02]} 63. a5 {[%emt 0:00:02]} Rd6 {[%emt 0:00:01]} 64. Kh4 {[%emt 0:00:03]} Rd4 {[%emt 0:00:01]} 65. a6 {[%emt 0:00:03]} Ra4 {[%emt 0:00:03]} 66. h6 {[%emt 0:00:02]} Ra5 {[%emt 0:00:02]} 67. g5 {[%emt 0:00:02]} Rb5 {[%emt 0:00:03]} 68. Kh5 {[%emt 0:00:01]} Ra5 {[%emt 0:00:01]} 69. Kg6 {[%emt 0:00:02]} 1-0

[Event "RUS-ch Blitz Women 2018"]
[Site "Sochi"]
[Date "2018.10.07"]
[Round "11"]
[White "Styazhkina, Anna"]
[Black "Kabanova, Ekaterina"]
[Result "1-0"]
[ECO "B40"]
[WhiteElo "2268"]
[BlackElo "2082"]
[Annotator "NA"]
[PlyCount "91"]
[EventDate "2018.10.07"]
[EventType "swiss"]
[EventCountry "RUS"]
[SourceTitle "playchess.com"]
[Source "ChessBase"]
[SourceQuality "1"]
[TimeControl "180+2"]

1. e4 {[%emt 0:00:00]} c5 {[%emt 0:00:00]} 2. Nf3 {[%emt 0:00:01]} e6 {[%emt 0:00:00]} 3. c4 {[%emt 0:00:04]} a6 {[%emt 0:00:00]} 4. Nc3 {[%emt 0:00:02]} Qc7 {[%emt 0:00:00]} 5. Be2 {[%emt 0:00:02]} b6 {[%emt 0:00:01]} 6. O-O {[%emt 0:00:02]} Bb7 {[%emt 0:00:00]} 7. d4 {[%emt 0:00:02]} cxd4 {[%emt 0:00:01]} 8. Nxd4 {[%emt 0:00:01]} Nf6 {[%emt 0:00:01]} 9. f3 {[%emt 0:00:05]} Bd6 {[%emt 0:00:07]} 10. Kh1 $14 {[%emt 0:01:12]} Be7 {[%emt 0:00:31]} 11. Be3 {[%emt 0:00:05]} d6 {[%emt 0:00:00]} 12. Qd2 {[%emt 0:00:05]} Nbd7 {[%emt 0:00:01]} 13. Rac1 {[%emt 0:00:01]} Rc8 {[%emt 0:00:00]} 14. Rfd1 {[%emt 0:00:03]} Ne5 {[%emt 0:00:01]} 15. b3 {[%emt 0:00:28]} h5 {[%emt 0:00:01]} 16. Bf1 {[%emt 0:00:32]} Qb8 {[%emt 0:00:07]} 17. Qf2 {[%emt 0:00:09]} h4 {[%emt 0:00:16]} 18. h3 {[%emt 0:00:01]} Nh5 {[%emt 0:00:05]} 19. Nde2 {[%emt 0:00:01]} Nd7 {[%emt 0:00:04]} 20. Nf4 {[%emt 0:00:31]} Ng3+ {[%emt 0:00:03]} 21. Kg1 {[%emt 0:00:01]} Ba8 {[%emt 0:00:27]} 22. Nd3 {[%emt 0:00:04]} Nc5 {[%emt 0:00:03]} 23. Bf4 {[%emt 0:00:06]} Nh5 {[%emt 0:00:04]} 24. Be3 {[%emt 0:00:03]} Bf6 {[%emt 0:00:14]} 25. b4 {[%emt 0:00:02]} Nxd3 {[%emt 0:00:03]} 26. Bxd3 {[%emt 0:00:01]} Ng3 {[%emt 0:00:12]} 27. Bf4 {[%emt 0:00:04]} Be5 {[%emt 0:00:26]} 28. Bxe5 {[%emt 0:00:02]} dxe5 {[%emt 0:00:01]} 29. Ne2 {[%emt 0:00:03]} Nh5 {[%emt 0:00:03]} 30. Bb1 {[%emt 0:00:02]} Nf4 {[%emt 0:00:11]} 31. Nxf4 {[%emt 0:00:02]} exf4 {[%emt 0:00:01]} 32. Rd2 {[%emt 0:00:02]} a5 {[%emt 0:00:01]} 33. b5 {[%emt 0:00:02]} Qc7 {[%emt 0:00:15]} 34. Rcd1 {[%emt 0:00:01]} O-O {[%emt 0:00:18]} 35. Bd3 {[%emt 0:00:01]} f5 {[%emt 0:00:07]} 36. exf5 {[%emt 0:00:03]} exf5 {[%emt 0:00:01]} 37. Qxh4 {[%emt 0:00:02]} Rf6 {[%emt 0:00:02]} 38. Re2 {[%emt 0:00:01]} Qc5+ {[%emt 0:00:00]} 39. Kh2 {[%emt 0:00:03]} Rd8 {[%emt 0:00:02]} 40. Bc2 {[%emt 0:00:04]} Rxd1 {[%emt 0:00:01]} 41. Bxd1 {[%emt 0:00:02]} Qd4 {[%emt 0:00:05]} 42. Re8+ {[%emt 0:00:02]} Kf7 {[%emt 0:00:02]} 43. Rxa8 {[%emt 0:00:01]} Qxd1 {[%emt 0:00:03]} 44. Qh5+ {[%emt 0:00:01]} Ke6 {[%emt 0:00:04]} 45. Qe8+ {[%emt 0:00:02]} Kd6 {[%emt 0:00:03]} 46. Rd8+ {[%emt 0:00:01]} 1-0

[Event "RUS-ch Blitz Women 2018"]
[Site "Sochi"]
[Date "2018.10.07"]
[Round "11"]
[White "Vasilevich, Irina"]
[Black "Protopopova, Anastasiya"]
[Result "1-0"]
[ECO "A01"]
[WhiteElo "2160"]
[BlackElo "2308"]
[Annotator "NA"]
[PlyCount "85"]
[EventDate "2018.10.07"]
[EventType "swiss"]
[EventCountry "RUS"]
[SourceTitle "playchess.com"]
[Source "ChessBase"]
[SourceQuality "1"]
[TimeControl "180+2"]

1. b3 {[%emt 0:00:00]} d5 {[%emt 0:00:01]} 2. Bb2 {[%emt 0:00:01]} Bf5 {[%emt 0:00:02]} 3. d3 {[%emt 0:00:02]} e6 {[%emt 0:00:03]} 4. e3 {[%emt 0:00:01]} Nf6 {[%emt 0:00:03]} 5. Be2 {[%emt 0:00:01]} Bd6 {[%emt 0:00:04]} 6. Nd2 {[%emt 0:00:01]} O-O {[%emt 0:00:17]} 7. g4 {[%emt 0:00:02]} Bg6 {[%emt 0:00:04]} 8. h4 {[%emt 0:00:01]} h6 {[%emt 0:00:43]} 9. g5 {[%emt 0:00:02]} hxg5 $18 {[%emt 0:00:12]} (9... Nfd7 $16 {keeps fighting.}) 10. hxg5 {[%emt 0:00:01]} Nh7 {[%emt 0:00:07]} 11. f4 {[%emt 0:00:02]} Re8 {[%emt 0:00:13]} 12. Bh5 {[%emt 0:00:05]} Nf8 {[%emt 0:00:10]} 13. Bxg6 {[%emt 0:00:25]} fxg6 {[%emt 0:00:12]} 14. Ngf3 {[%emt 0:00:07]} Nbd7 {[%emt 0:00:07]} 15. Qe2 {[%emt 0:00:16]} e5 {[%emt 0:00:01]} 16. Qh2 {[%emt 0:00:14]} Qe7 {[%emt 0:00:17]} 17. O-O-O {[%emt 0:00:05]} Ba3 {[%emt 0:00:08]} 18. fxe5 {[%emt 0:00:10]} Bxb2+ {[%emt 0:00:03]} 19. Kxb2 {[%emt 0:00:01]} Nxe5 {[%emt 0:00:14]} 20. Rdf1 {[%emt 0:00:29]} Nf7 {[%emt 0:00:09]} 21. e4 {[%emt 0:00:17]} a5 {[%emt 0:00:04]} 22. exd5 {[%emt 0:00:16]} a4 {[%emt 0:00:03]} 23. Re1 {[%emt 0:00:08]} Qb4 {[%emt 0:00:04]} 24. c3 {[%emt 0:00:20]} Qc5 {[%emt 0:00:06]} 25. Rxe8 {[%emt 0:00:08]} Rxe8 {[%emt 0:00:03]} 26. d4 {[%emt 0:00:20]} Qxd5 {[%emt 0:00:02]} 27. Ne5 {[%emt 0:00:01]} Nxe5 {[%emt 0:00:04]} 28. Qh8+ {[%emt 0:00:01]} Kf7 {[%emt 0:00:01]} 29. Rf1+ {[%emt 0:00:02]} Ke7 {[%emt 0:00:06]} 30. Qxg7+ {[%emt 0:00:03]} Kd8 {[%emt 0:00:02]} 31. Rxf8 {[%emt 0:00:03]} Nd3+ {[%emt 0:00:07]} 32. Kc2 {[%emt 0:00:01]} Ne1+ {[%emt 0:00:01]} 33. Kd1 {[%emt 0:00:05]} Nd3 {[%emt 0:00:06]} 34. Rxe8+ {[%emt 0:00:06]} Kxe8 {[%emt 0:00:01]} 35. Qxg6+ {[%emt 0:00:01]} Kd7 {[%emt 0:00:01]} 36. Qxd3 {[%emt 0:00:01]} axb3 {[%emt 0:00:01]} 37. axb3 {[%emt 0:00:01]} Qh1+ {[%emt 0:00:02]} 38. Kc2 {[%emt 0:00:00]} Qg1 {[%emt 0:00:01]} 39. Qf5+ {[%emt 0:00:02]} Kd8 {[%emt 0:00:01]} 40. Qf6+ {[%emt 0:00:02]} Kc8 {[%emt 0:00:01]} 41. g6 {[%emt 0:00:01]} b5 {[%emt 0:00:02]} 42. g7 {[%emt 0:00:02]} Kb7 {[%emt 0:00:01]} 43. Qf7 {[%emt 0:00:03]} 1-0

[Event "RUS-ch Blitz Women 2018"]
[Site "Sochi"]
[Date "2018.10.07"]
[Round "11"]
[White "Shafigullina, Zarina"]
[Black "Maletina, Tatiana"]
[Result "1-0"]
[ECO "D78"]
[WhiteElo "2150"]
[BlackElo "2270"]
[Annotator "NA"]
[PlyCount "103"]
[EventDate "2018.10.07"]
[EventType "swiss"]
[EventCountry "RUS"]
[SourceTitle "playchess.com"]
[Source "ChessBase"]
[SourceQuality "1"]
[TimeControl "180+2"]

1. d4 {[%emt 0:00:00]} d5 {[%emt 0:00:00]} 2. Nf3 {[%emt 0:00:00]} Nf6 {[%emt 0:00:01]} 3. g3 {[%emt 0:00:00]} c6 {[%emt 0:00:02]} 4. c4 {[%emt 0:00:03]} g6 {[%emt 0:00:06]} 5. Bg2 {[%emt 0:00:02]} Bg7 {[%emt 0:00:00]} 6. O-O {[%emt 0:00:02]} O-O {[%emt 0:00:02]} 7. Qb3 {[%emt 0:00:22]} Qb6 {[%emt 0:00:09]} 8. c5 {[%emt 0:00:08]} Qxb3 {[%emt 0:00:03]} 9. axb3 {[%emt 0:00:01]} Bf5 {[%emt 0:00:08]} 10. Nc3 {[%emt 0:00:01]} Nbd7 {[%emt 0:00:02]} 11. b4 {[%emt 0:00:01]} a6 {[%emt 0:00:02]} 12. Bf4 {[%emt 0:00:05]} Ne4 {[%emt 0:00:09]} 13. Nxe4 {[%emt 0:00:40]} Bxe4 {[%emt 0:00:17]} 14. Ne5 {[%emt 0:00:09]} Nxe5 {[%emt 0:00:06]} 15. Bxe4 {[%emt 0:00:03]} Nc4 {[%emt 0:00:06]} 16. b3 {[%emt 0:00:09]} dxe4 {[%emt 0:00:08]} 17. bxc4 {[%emt 0:00:02]} Bxd4 {[%emt 0:00:02]} 18. Rad1 {[%emt 0:00:02]} Rad8 {[%emt 0:00:06]} 19. Bc7 {[%emt 0:00:03]} Rd7 {[%emt 0:00:02]} 20. Bb6 {[%emt 0:00:11]} e3 {[%emt 0:00:07]} 21. Kg2 {[%emt 0:00:03]} exf2 {[%emt 0:00:33]} 22. e3 {[%emt 0:00:02]} e5 {[%emt 0:00:01]} 23. exd4 {[%emt 0:00:05]} exd4 {[%emt 0:00:01]} 24. Rxf2 {[%emt 0:00:02]} Re8 {[%emt 0:00:01]} 25. Rfd2 {[%emt 0:00:07]} Re4 {[%emt 0:00:01]} 26. Kf3 {[%emt 0:00:06]} f5 {[%emt 0:00:02]} 27. Re2 {[%emt 0:00:07]} Rxe2 {[%emt 0:00:18]} 28. Kxe2 {[%emt 0:00:01]} Kf7 {[%emt 0:00:01]} 29. Kd3 {[%emt 0:00:08]} Kf6 {[%emt 0:00:00]} 30. Re1 {[%emt 0:00:02]} Kf7 {[%emt 0:00:05]} 31. Rb1 {[%emt 0:00:06]} g5 {[%emt 0:00:02]} 32. b5 {[%emt 0:00:02]} axb5 {[%emt 0:00:02]} 33. cxb5 {[%emt 0:00:02]} Ke6 {[%emt 0:00:04]} 34. Kc4 {[%emt 0:00:05]} f4 {[%emt 0:00:02]} 35. g4 {[%emt 0:00:23]} d3 {[%emt 0:00:28]} 36. Re1+ {[%emt 0:00:04]} Kf6 {[%emt 0:00:01]} 37. bxc6 {[%emt 0:00:16]} bxc6 {[%emt 0:00:01]} 38. Ba5 {[%emt 0:00:01]} d2 {[%emt 0:00:02]} 39. Bc3+ {[%emt 0:00:04]} Kg6 {[%emt 0:00:04]} 40. Rd1 {[%emt 0:00:01]} h5 {[%emt 0:00:01]} 41. gxh5+ {[%emt 0:00:05]} Kxh5 {[%emt 0:00:01]} 42. Rxd2 {[%emt 0:00:03]} Rxd2 {[%emt 0:00:07]} 43. Bxd2 {[%emt 0:00:01]} Kg4 {[%emt 0:00:00]} 44. Kd4 {[%emt 0:00:08]} Kf3 {[%emt 0:00:02]} 45. Ke5 {[%emt 0:00:05]} Kg2 {[%emt 0:00:14]} 46. Bxf4 {[%emt 0:00:00]} gxf4 {[%emt 0:00:01]} 47. Kxf4 {[%emt 0:00:00]} Kxh2 {[%emt 0:00:01]} 48. Ke5 {[%emt 0:00:01]} Kg3 {[%emt 0:00:03]} 49. Kd6 {[%emt 0:00:00]} Kf4 {[%emt 0:00:00]} 50. Kxc6 {[%emt 0:00:02]} Ke5 {[%emt 0:00:01]} 51. Kb7 {[%emt 0:00:07]} Kd5 {[%emt 0:00:02]} 52. c6 {[%emt 0:00:01]} 1-0

[Event "RUS-ch Blitz Women 2018"]
[Site "Sochi"]
[Date "2018.10.07"]
[Round "11"]
[White "Sukhareva, Evgeniya"]
[Black "Belenkaya, Dina"]
[Result "0-1"]
[ECO "B19"]
[WhiteElo "2125"]
[BlackElo "2329"]
[Annotator "NA"]
[PlyCount "104"]
[EventDate "2018.10.07"]
[EventType "swiss"]
[EventCountry "RUS"]
[SourceTitle "playchess.com"]
[Source "ChessBase"]
[SourceQuality "1"]
[TimeControl "180+2"]

1. e4 {[%emt 0:00:00]} c6 {[%emt 0:00:00]} 2. d4 {[%emt 0:00:00]} d5 {[%emt 0:00:00]} 3. Nc3 {[%emt 0:00:00]} dxe4 {[%emt 0:00:00]} 4. Nxe4 {[%emt 0:00:02]} Bf5 {[%emt 0:00:01]} 5. Ng3 {[%emt 0:00:01]} Bg6 {[%emt 0:00:01]} 6. Nf3 {[%emt 0:00:01]} Nd7 {[%emt 0:00:02]} 7. h4 {[%emt 0:00:01]} h6 {[%emt 0:00:01]} 8. h5 {[%emt 0:00:01]} Bh7 {[%emt 0:00:01]} 9. Bd3 {[%emt 0:00:01]} Bxd3 {[%emt 0:00:01]} 10. Qxd3 {[%emt 0:00:01]} e6 {[%emt 0:00:01]} 11. Bd2 {[%emt 0:00:01]} Ngf6 {[%emt 0:00:01]} 12. O-O-O {[%emt 0:00:03]} Be7 {[%emt 0:00:02]} 13. Qe2 {[%emt 0:00:03]} c5 {[%emt 0:00:06]} 14. Nf1 {[%emt 0:00:06]} cxd4 {[%emt 0:00:06]} 15. Nxd4 {[%emt 0:00:03]} Qb6 {[%emt 0:00:04]} 16. Be3 {[%emt 0:00:03]} Qa5 {[%emt 0:00:03]} 17. Kb1 {[%emt 0:00:01]} Nd5 {[%emt 0:00:01]} 18. Bc1 {[%emt 0:00:07]} Rc8 {[%emt 0:00:06]} 19. Nxe6 {[%emt 0:00:31]} fxe6 {[%emt 0:00:12]} 20. Qxe6 {[%emt 0:00:01]} Rc5 {[%emt 0:01:05]} 21. Qg6+ {[%emt 0:00:27]} Kd8 {[%emt 0:00:01]} 22. Rh3 {[%emt 0:00:07]} Bf6 {[%emt 0:00:06]} 23. Qg4 {[%emt 0:00:35]} Ne5 {[%emt 0:00:12]} 24. Qe4 {[%emt 0:00:14]} Kc8 {[%emt 0:00:11]} 25. f4 {[%emt 0:00:23]} Nc6 {[%emt 0:00:09]} 26. Rb3 {[%emt 0:00:44]} Rd8 {[%emt 0:00:07]} 27. Ne3 {[%emt 0:00:05]} Nxe3 {[%emt 0:00:12]} 28. Rxd8+ {[%emt 0:00:01]} Qxd8 {[%emt 0:00:05]} 29. Rxe3 {[%emt 0:00:04]} Rd5 {[%emt 0:00:04]} 30. Qc4 {[%emt 0:00:05]} Kb8 {[%emt 0:00:07]} 31. Rb3 {[%emt 0:00:01]} Qd7 {[%emt 0:00:06]} 32. Qe4 {[%emt 0:00:04]} a6 {[%emt 0:00:04]} 33. f5 {[%emt 0:00:01]} Rd1 {[%emt 0:00:03]} 34. a3 {[%emt 0:00:03]} Bg5 {[%emt 0:00:02]} 35. Ka2 {[%emt 0:00:03]} Bxc1 {[%emt 0:00:03]} 36. Rb6 {[%emt 0:00:02]} Bg5 {[%emt 0:00:04]} 37. a4 {[%emt 0:00:02]} Bd8 {[%emt 0:00:01]} 38. Rb3 {[%emt 0:00:01]} Rd4 {[%emt 0:00:03]} 39. Qe3 {[%emt 0:00:02]} Rxa4+ {[%emt 0:00:01]} 40. Ra3 {[%emt 0:00:01]} Rxa3+ {[%emt 0:00:02]} 41. Qxa3 {[%emt 0:00:02]} Qd5+ {[%emt 0:00:00]} 42. Kb1 {[%emt 0:00:02]} Be7 {[%emt 0:00:05]} 43. Qg3+ {[%emt 0:00:02]} Qe5 {[%emt 0:00:05]} 44. Qd3 {[%emt 0:00:03]} Bf6 {[%emt 0:00:01]} 45. c3 {[%emt 0:00:00]} Ka7 {[%emt 0:00:07]} 46. g4 {[%emt 0:00:02]} Qc5 {[%emt 0:00:02]} 47. Ka2 {[%emt 0:00:03]} Ne5 {[%emt 0:00:02]} 48. Qe4 {[%emt 0:00:02]} Nc4 {[%emt 0:00:02]} 49. Qe2 {[%emt 0:00:02]} Qb5 {[%emt 0:00:04]} 50. Qf2+ {[%emt 0:00:04]} Ka8 {[%emt 0:00:01]} 51. Qe2 {[%emt 0:00:03]} Qxb2+ {[%emt 0:00:01]} 52. Qxb2 {[%emt 0:00:01]} Nxb2 {[%emt 0:00:01]} 0-1

[Event "RUS-ch Blitz Women 2018"]
[Site "Sochi"]
[Date "2018.10.07"]
[Round "12"]
[White "Kashlinskaya, Alina"]
[Black "Diakonova, Ekaterina"]
[Result "1/2-1/2"]
[ECO "A50"]
[WhiteElo "2447"]
[BlackElo "2236"]
[Annotator "ChessBase"]
[PlyCount "80"]
[EventDate "2018.10.07"]
[EventType "swiss"]
[EventCountry "RUS"]
[SourceTitle "playchess.com"]
[Source "ChessBase"]
[SourceQuality "1"]
[TimeControl "180+2"]

1. d4 {[%emt 0:00:00]} Nf6 {[%emt 0:00:00]} 2. c4 {[%emt 0:00:00]} b6 {[%emt 0:00:00]} 3. f3 {[%emt 0:00:00]} Nc6 {[%emt 0:00:00]} 4. Nc3 {[%emt 0:00:10]} e5 {[%emt 0:00:01]} 5. d5 {[%emt 0:00:05]} Nb8 {[%emt 0:00:00]} 6. e4 a5 7. Bd3 {[%emt 0:00:25]} Na6 {[%emt 0:00:02]} 8. Nge2 {[%emt 0:00:04]} Bc5 {[%emt 0:00:01]} 9. Na4 {[%emt 0:00:07]} O-O {[%emt 0:00:04]} 10. Nxc5 {[%emt 0:00:02]} Nxc5 {[%emt 0:00:01]} 11. Bc2 {[%emt 0:00:20]} Ba6 {[%emt 0:00:20]} 12. b3 {[%emt 0:00:01]} d6 {[%emt 0:00:00]} 13. Be3 Nfd7 14. O-O {[%emt 0:00:08]} b5 {[%emt 0:00:01]} 15. cxb5 {[%emt 0:00:16]} Bxb5 {[%emt 0:00:01]} 16. Qd2 {[%emt 0:00:06]} Qe7 {[%emt 0:00:46]} 17. Rfc1 {[%emt 0:00:01]} Rfb8 {[%emt 0:00:05]} 18. Rab1 {[%emt 0:00:05]} Bxe2 {[%emt 0:00:13]} 19. Qxe2 {[%emt 0:00:02]} Na6 {[%emt 0:00:23]} 20. Bd3 {[%emt 0:00:04]} Ndc5 {[%emt 0:00:01]} 21. Bb5 {[%emt 0:00:03]} Rb6 {[%emt 0:00:12]} 22. Bxa6 {[%emt 0:00:14]} Rbxa6 {[%emt 0:00:01]} 23. Bxc5 {[%emt 0:00:01]} dxc5 {[%emt 0:00:01]} 24. Qe3 {[%emt 0:00:03]} a4 {[%emt 0:00:06]} 25. Qxc5 {[%emt 0:00:19]} Qxc5+ {[%emt 0:00:04]} 26. Rxc5 {[%emt 0:00:01]} axb3 {[%emt 0:00:01]} 27. axb3 {[%emt 0:00:03]} Ra2 {[%emt 0:00:08]} 28. Rxc7 {[%emt 0:00:07]} Rd2 {[%emt 0:00:02]} 29. Rbc1 {[%emt 0:00:07]} f5 {[%emt 0:00:04]} 30. b4 {[%emt 0:00:18]} Raa2 {[%emt 0:00:02]} 31. Rc8+ {[%emt 0:00:01]} Kf7 {[%emt 0:00:01]} 32. R8c7+ {[%emt 0:00:14]} Kg6 {[%emt 0:00:01]} 33. R1c6+ {[%emt 0:00:01]} Kh5 {[%emt 0:00:01]} 34. g4+ {[%emt 0:00:04]} Kh4 {[%emt 0:00:13]} 35. Rc1 {[%emt 0:00:14]} Rg2+ {[%emt 0:00:02]} 36. Kf1 {[%emt 0:00:02]} Raf2+ {[%emt 0:00:01]} 37. Ke1 {[%emt 0:00:00]} Re2+ {[%emt 0:00:01]} 38. Kd1 {[%emt 0:00:01]} Rd2+ {[%emt 0:00:00]} 39. Ke1 {[%emt 0:00:00]} Rge2+ {[%emt 0:00:08]} 40. Kf1 {[%emt 0:00:01]} Rf2+ {[%emt 0:00:01]} 1/2-1/2